[Event "Early-Titled-Tuesday-Blitz-January-16-2024"]
[Site "Chess.com"]
[Date "2024.01.16"]
[Round "4"]
[White "BardArtem"]
[Black "slorovel"]
[Result "1-0"]
[WhiteElo "2796"]
[BlackElo "2580"]
[TimeControl "180+1"]
[EndTime "8:43:39 PST"]
[Termination "BardArtem won by resignation"]

1. e4 {[%clk 0:03:00.9]} 1... e6 {[%clk 0:02:56.3]} 2. d4 {[%clk 0:03:00.7]}
2... d5 {[%clk 0:02:56.5]} 3. Nc3 {[%clk 0:03:00.8]} 3... Nc6 {[%clk 0:02:56.5]}
4. Nf3 {[%clk 0:03:00.6]} 4... Nf6 {[%clk 0:02:56.6]} 5. Bd3 {[%clk 0:02:52.2]}
5... Nb4 {[%clk 0:02:55.9]} 6. O-O {[%clk 0:02:39.5]} 6... Nxd3 {[%clk
0:02:55.2]} 7. Qxd3 {[%clk 0:02:40.4]} 7... Be7 {[%clk 0:02:53.4]} 8. Bf4 {[%clk
0:02:37.4]} 8... dxe4 {[%clk 0:02:49.4]} 9. Nxe4 {[%clk 0:02:36.8]} 9... O-O
{[%clk 0:02:45.5]} 10. Rad1 {[%clk 0:02:28.3]} 10... b6 {[%clk 0:02:41.6]} 11.
Nxf6+ {[%clk 0:02:06.7]} 11... Bxf6 {[%clk 0:02:42.5]} 12. Qc4 {[%clk
0:02:05.5]} 12... Bb7 {[%clk 0:02:36.5]} 13. Ne5 {[%clk 0:01:44.5]} 13... Bxe5
{[%clk 0:02:09.7]} 14. Bxe5 {[%clk 0:01:45.4]} 14... Qd5 {[%clk 0:01:52.4]} 15.
Qxd5 {[%clk 0:01:44.2]} 15... Bxd5 {[%clk 0:01:53.3]} 16. b3 {[%clk 0:01:43.4]}
16... Rac8 {[%clk 0:01:52]} 17. c4 {[%clk 0:01:43.5]} 17... Bb7 {[%clk
0:01:51.3]} 18. f3 {[%clk 0:01:42.2]} 18... Rfd8 {[%clk 0:01:51.2]} 19. Kf2
{[%clk 0:01:41.1]} 19... Rd7 {[%clk 0:01:51.3]} 20. Rd2 {[%clk 0:01:39.7]} 20...
Rcd8 {[%clk 0:01:49.9]} 21. Rfd1 {[%clk 0:01:39.9]} 21... c5 {[%clk 0:01:49.1]}
22. Ke3 {[%clk 0:01:30.7]} 22... f6 {[%clk 0:01:46.5]} 23. Bg3 {[%clk
0:01:11.2]} 23... cxd4+ {[%clk 0:01:45.8]} 24. Rxd4 {[%clk 0:01:12.1]} 24...
Rxd4 {[%clk 0:01:38.4]} 25. Rxd4 {[%clk 0:01:13]} 25... Rxd4 {[%clk 0:01:37.6]}
26. Kxd4 {[%clk 0:01:13.9]} 26... e5+ {[%clk 0:01:38]} 27. Kc3 {[%clk
0:01:13.6]} 27... e4 {[%clk 0:01:35.1]} 28. fxe4 {[%clk 0:01:07.9]} 28... Bxe4
{[%clk 0:01:36]} 29. Bb8 {[%clk 0:01:08.7]} 29... a6 {[%clk 0:01:35.7]} 30. Bc7
{[%clk 0:00:55.1]} 30... b5 {[%clk 0:01:35.5]} 31. cxb5 {[%clk 0:00:56]} 31...
axb5 {[%clk 0:01:36.4]} 32. Kb4 {[%clk 0:00:56.9]} 32... Bd3 {[%clk 0:01:24.7]}
33. Kc5 {[%clk 0:00:47.3]} 33... Kf7 {[%clk 0:01:23.3]} 34. a4 {[%clk
0:00:46.9]} 34... bxa4 {[%clk 0:01:22.5]} 35. bxa4 {[%clk 0:00:47.8]} 35... Ke6
{[%clk 0:01:21.7]} 36. Kb6 {[%clk 0:00:44.1]} 36... Kd7 {[%clk 0:01:17.8]} 37.
a5 {[%clk 0:00:36.8]} 37... Be4 {[%clk 0:01:14.7]} 38. a6 {[%clk 0:00:33.5]}
38... h5 {[%clk 0:01:12.8]} 39. g3 {[%clk 0:00:32.4]} 39... g5 {[%clk
0:01:09.6]} 40. Bb8 {[%clk 0:00:14.1]} 40... h4 {[%clk 0:01:06]} 41. gxh4 {[%clk
0:00:09.8]} 41... gxh4 {[%clk 0:01:06.9]} 42. Bf4 {[%clk 0:00:09.8]} 42... h3
{[%clk 0:01:04.4]} 43. Be3 {[%clk 0:00:06.2]} 43... f5 {[%clk 0:01:03.5]} 44.
Bf4 {[%clk 0:00:06.1]} 44... Bg2 {[%clk 0:01:02.6]} 45. Kc5 {[%clk 0:00:04.5]}
45... Ke6 {[%clk 0:00:58.7]} 46. Kb6 {[%clk 0:00:03]} 46... Kd7 {[%clk
0:00:58.7]} 47. Kc5 {[%clk 0:00:03.1]} 47... Ke6 {[%clk 0:00:58.6]} 48. Bg3
{[%clk 0:00:03.7]} 48... Bf3 {[%clk 0:00:57.6]} 49. Kd4 {[%clk 0:00:03.8]} 49...
Bg2 {[%clk 0:00:56.3]} 50. Ke3 {[%clk 0:00:03.2]} 50... Be4 {[%clk 0:00:55.5]}
51. Kf4 {[%clk 0:00:02.9]} 51... Bg2 {[%clk 0:00:55.4]} 52. Kg5 {[%clk
0:00:03.1]} 52... Be4 {[%clk 0:00:53.7]} 53. Kh5 {[%clk 0:00:02.6]} 53... Bf3+
{[%clk 0:00:53.4]} 54. Kh4 {[%clk 0:00:03]} 54... Bg2 {[%clk 0:00:53.6]} 55. Kg5
{[%clk 0:00:03.5]} 55... Be4 {[%clk 0:00:52.9]} 56. Bf4 {[%clk 0:00:04]} 56...
Bg2 {[%clk 0:00:52.3]} 57. Kh4 {[%clk 0:00:04.7]} 57... Kf6 {[%clk 0:00:50.9]}
58. a7 {[%clk 0:00:04.4]} 58... Kg6 {[%clk 0:00:50.2]} 59. Be5 {[%clk
0:00:04.6]} 59... Kh6 {[%clk 0:00:46.6]} 60. Bf6 {[%clk 0:00:04.6]} 60... Kg6
{[%clk 0:00:46.7]} 61. Bg5 {[%clk 0:00:05.1]} 61... Kf7 {[%clk 0:00:46.8]} 62.
Kg3 {[%clk 0:00:04.7]} 62... Kg6 {[%clk 0:00:44.9]} 63. Kf4 {[%clk 0:00:05.3]}
63... Be4 {[%clk 0:00:39.5]} 64. Bh4 {[%clk 0:00:04.5]} 64... Kf7 {[%clk
0:00:39]} 65. Ke5 {[%clk 0:00:04.5]} 65... Ke8 {[%clk 0:00:38.7]} 66. Kd6 {[%clk
0:00:04.9]} 66... Kf7 {[%clk 0:00:31.8]} 67. Ke5 {[%clk 0:00:03.5]} 67... Kg6
{[%clk 0:00:31.8]} 68. Kf4 {[%clk 0:00:02.6]} 68... Kf7 {[%clk 0:00:31.4]} 69.
Be1 {[%clk 0:00:03.3]} 69... Ke6 {[%clk 0:00:30.5]} 70. Kg3 {[%clk 0:00:03.7]}
70... Bg2 {[%clk 0:00:25.4]} 71. Bd2 {[%clk 0:00:04.3]} 71... Kd7 {[%clk
0:00:24.2]} 72. Kf4 {[%clk 0:00:04.3]} 72... Be4 {[%clk 0:00:23.8]} 73. Be3
{[%clk 0:00:04.1]} 73... Ke6 {[%clk 0:00:22.7]} 74. Bg1 {[%clk 0:00:03.9]} 74...
Bg2 {[%clk 0:00:22.6]} 75. Kg3 {[%clk 0:00:04]} 75... Kf6 {[%clk 0:00:22.4]} 76.
Bc5 {[%clk 0:00:03.8]} 76... Kg5 {[%clk 0:00:21.9]} 77. Bd4 {[%clk 0:00:03.6]}
77... f4+ {[%clk 0:00:21.7]} 78. Kf2 {[%clk 0:00:04.4]} 78... Kf5 {[%clk
0:00:20.9]} 79. Bc3 {[%clk 0:00:04.6]} 79... Kg4 {[%clk 0:00:20.5]} 80. Bd2
{[%clk 0:00:04.9]} 80... Ba8 {[%clk 0:00:20.6]} 81. Bc3 {[%clk 0:00:03.8]} 81...
Bb7 {[%clk 0:00:20.7]} 82. Bd4 {[%clk 0:00:04]} 82... Ba8 {[%clk 0:00:20.8]} 83.
Be5 {[%clk 0:00:04.2]} 83... Bb7 {[%clk 0:00:20.8]} 84. Bd4 {[%clk 0:00:05]}
84... Ba8 {[%clk 0:00:20.9]} 85. Ke2 {[%clk 0:00:05.7]} 85... Bb7 {[%clk
0:00:20.9]} 86. Bf2 {[%clk 0:00:06.4]} 86... Ba8 {[%clk 0:00:20.9]} 87. Be1
{[%clk 0:00:06.8]} 87... Bb7 {[%clk 0:00:20.9]} 88. Bd2 {[%clk 0:00:07.5]} 88...
Ba8 {[%clk 0:00:20.8]} 89. Kd3 {[%clk 0:00:08.2]} 89... Kf3 {[%clk 0:00:20.3]}
90. Kd4 {[%clk 0:00:07.8]} 90... Bb7 {[%clk 0:00:18.3]} 91. Ke5 {[%clk
0:00:07.8]} 91... Kg4 {[%clk 0:00:09.9]} 92. Bxf4 {[%clk 0:00:08]} 92... Ba8
{[%clk 0:00:09.6]} 93. Bg3 {[%clk 0:00:07.9]} 93... Kh5 {[%clk 0:00:09.5]} 94.
Kd6 {[%clk 0:00:08.8]} 94... Kg6 {[%clk 0:00:09.5]} 95. Kc7 {[%clk 0:00:09.7]}
95... Kf7 {[%clk 0:00:09.8]} 96. Kb8 {[%clk 0:00:10.6]} 1-0

[Event "Early-Titled-Tuesday-Blitz-January-16-2024"]
[Site "Chess.com"]
[Date "2024.01.16"]
[Round "5"]
[White "BilodeauA"]
[Black "Egor_Koshulyan"]
[Result "1-0"]
[WhiteElo "2915"]
[BlackElo "2686"]
[TimeControl "180+1"]
[EndTime "8:53:57 PST"]
[Termination "BilodeauA won by checkmate"]

1. e4 {[%clk 0:03:00.9]} 1... c5 {[%clk 0:02:58.5]} 2. Nf3 {[%clk 0:03:01]} 2...
Nc6 {[%clk 0:02:58.4]} 3. Nc3 {[%clk 0:02:59.6]} 3... Nf6 {[%clk 0:02:58.2]} 4.
Bb5 {[%clk 0:02:58]} 4... g5 {[%clk 0:02:58.7]} 5. e5 {[%clk 0:02:44.6]} 5... g4
{[%clk 0:02:50.9]} 6. exf6 {[%clk 0:02:40.9]} 6... gxf3 {[%clk 0:02:49.1]} 7.
Bxc6 {[%clk 0:02:31.3]} 7... dxc6 {[%clk 0:02:40.6]} 8. Qxf3 {[%clk 0:02:31.1]}
8... exf6 {[%clk 0:02:40.9]} 9. O-O {[%clk 0:02:29.9]} 9... Be6 {[%clk
0:02:35.9]} 10. d3 {[%clk 0:02:28.2]} 10... Be7 {[%clk 0:02:31.3]} 11. Bf4
{[%clk 0:02:21.4]} 11... Qd7 {[%clk 0:02:28.5]} 12. Bg3 {[%clk 0:02:16.3]} 12...
O-O-O {[%clk 0:02:22.6]} 13. Ne4 {[%clk 0:02:07.8]} 13... f5 {[%clk 0:02:18.2]}
14. Qf4 {[%clk 0:02:08.2]} 14... Qd5 {[%clk 0:01:50.8]} 15. Qc7# {[%clk
0:02:06.6]} 1-0

[Event "Early-Titled-Tuesday-Blitz-January-16-2024"]
[Site "Chess.com"]
[Date "2024.01.16"]
[Round "5"]
[White "Talent-OF-Slovenia"]
[Black "jhedigm"]
[Result "0-1"]
[WhiteElo "2387"]
[BlackElo "2586"]
[TimeControl "180+1"]
[EndTime "8:54:01 PST"]
[Termination "jhedigm won by resignation"]

1. e4 {[%clk 0:03:00.9]} 1... c5 {[%clk 0:02:59.3]} 2. Nc3 {[%clk 0:03:00.5]}
2... g6 {[%clk 0:02:58.3]} 3. d4 {[%clk 0:03:00.1]} 3... cxd4 {[%clk 0:02:58.3]}
4. Qxd4 {[%clk 0:03:01]} 4... Nf6 {[%clk 0:02:58.8]} 5. Nf3 {[%clk 0:03:01]}
5... Nc6 {[%clk 0:02:59.2]} 6. Qa4 {[%clk 0:02:59.8]} 6... d6 {[%clk 0:02:58.3]}
7. e5 {[%clk 0:02:59.8]} 7... dxe5 {[%clk 0:02:58.4]} 8. Nxe5 {[%clk 0:03:00.7]}
8... Bd7 {[%clk 0:02:58.6]} 9. Nxd7 {[%clk 0:03:00.7]} 9... Nxd7 {[%clk
0:02:56.7]} 10. Be2 {[%clk 0:02:58.2]} 10... Bg7 {[%clk 0:02:56.2]} 11. O-O
{[%clk 0:02:57.5]} 11... O-O {[%clk 0:02:55.9]} 12. Rd1 {[%clk 0:02:57.1]} 12...
Qe8 {[%clk 0:02:37.8]} 13. Bf3 {[%clk 0:02:48.5]} 13... Nb6 {[%clk 0:02:34.1]}
14. Qh4 {[%clk 0:02:47.8]} 14... Rd8 {[%clk 0:02:30.5]} 15. Bh6 {[%clk
0:02:46.8]} 15... Nd4 {[%clk 0:02:28.3]} 16. Bxb7 {[%clk 0:02:26.2]} 16... Nf5
{[%clk 0:02:25.5]} 17. Bxg7 {[%clk 0:02:21.2]} 17... Nxh4 {[%clk 0:02:24.1]} 18.
Bxf8 {[%clk 0:02:21.2]} 18... Kxf8 {[%clk 0:02:19.2]} 19. g3 {[%clk 0:02:20.9]}
19... Nf5 {[%clk 0:02:16.2]} 20. Kg2 {[%clk 0:02:20.2]} 20... Nd4 {[%clk
0:02:13.4]} 21. Be4 {[%clk 0:02:18.3]} 21... f5 {[%clk 0:02:12]} 22. Bd3 {[%clk
0:02:18.6]} 22... e5 {[%clk 0:02:12.1]} 23. Ne2 {[%clk 0:02:11]} 23... Qc6+
{[%clk 0:02:11.5]} 24. Kh3 {[%clk 0:02:10.1]} 0-1

[Event "Early-Titled-Tuesday-Blitz-January-16-2024"]
[Site "Chess.com"]
[Date "2024.01.16"]
[Round "5"]
[White "GMFYHR1"]
[Black "Maestro-Fermin"]
[Result "0-1"]
[WhiteElo "2449"]
[BlackElo "2619"]
[TimeControl "180+1"]
[EndTime "8:55:01 PST"]
[Termination "Maestro-Fermin won by resignation"]

1. d4 {[%clk 0:03:00.9]} 1... e6 {[%clk 0:02:59.6]} 2. c4 {[%clk 0:03:00.6]}
2... b6 {[%clk 0:02:59.6]} 3. Nc3 {[%clk 0:03:00.4]} 3... Bb7 {[%clk 0:02:59.2]}
4. e4 {[%clk 0:03:01.1]} 4... Bb4 {[%clk 0:02:59.3]} 5. Bd3 {[%clk 0:03:00.1]}
5... f5 {[%clk 0:02:58.9]} 6. Qc2 {[%clk 0:02:22.2]} 6... Bxc3+ {[%clk
0:02:51.8]} 7. bxc3 {[%clk 0:02:21.7]} 7... Qh4 {[%clk 0:02:50.5]} 8. Nf3 {[%clk
0:02:18.5]} 8... Qg4 {[%clk 0:02:47.6]} 9. O-O {[%clk 0:01:59.9]} 9... fxe4
{[%clk 0:02:40.7]} 10. h3 {[%clk 0:01:44.9]} 10... exd3 {[%clk 0:02:32]} 11.
Qxd3 {[%clk 0:01:44.5]} 11... Qe4 {[%clk 0:02:25.8]} 12. Qd2 {[%clk 0:01:42.1]}
12... Nf6 {[%clk 0:02:21.1]} 13. d5 {[%clk 0:01:40.9]} 13... O-O {[%clk
0:02:18]} 14. Re1 {[%clk 0:01:38]} 14... Qxc4 {[%clk 0:02:16.9]} 15. dxe6 {[%clk
0:01:37.5]} 15... Bxf3 {[%clk 0:02:07.4]} 16. e7 {[%clk 0:01:37.8]} 16... Re8
{[%clk 0:02:04.4]} 17. gxf3 {[%clk 0:01:38]} 17... Nc6 {[%clk 0:02:03.8]} 18.
Ba3 {[%clk 0:01:38.5]} 18... d6 {[%clk 0:01:55.7]} 19. Qg5 {[%clk 0:01:23.4]}
19... Qf7 {[%clk 0:01:49]} 0-1

[Event "Early-Titled-Tuesday-Blitz-January-16-2024"]
[Site "Chess.com"]
[Date "2024.01.16"]
[Round "5"]
[White "Schachmalanders"]
[Black "temiksmozg"]
[Result "0-1"]
[WhiteElo "2460"]
[BlackElo "2636"]
[TimeControl "180+1"]
[EndTime "8:55:17 PST"]
[Termination "temiksmozg won by resignation"]

1. e4 {[%clk 0:03:00.9]} 1... c5 {[%clk 0:02:35.1]} 2. Nc3 {[%clk 0:02:59.8]}
2... Nc6 {[%clk 0:02:35.1]} 3. g3 {[%clk 0:03:00.3]} 3... g6 {[%clk 0:02:31.4]}
4. Bg2 {[%clk 0:03:00.8]} 4... d6 {[%clk 0:02:31.5]} 5. Nge2 {[%clk 0:03:01.1]}
5... h5 {[%clk 0:02:31]} 6. h4 {[%clk 0:02:57.5]} 6... Bg7 {[%clk 0:02:30.8]} 7.
d3 {[%clk 0:02:57.3]} 7... Rb8 {[%clk 0:02:20.4]} 8. Bg5 {[%clk 0:02:56.3]} 8...
b5 {[%clk 0:02:20.5]} 9. Qd2 {[%clk 0:02:56.7]} 9... b4 {[%clk 0:02:20.4]} 10.
Nd1 {[%clk 0:02:57]} 10... a5 {[%clk 0:02:19.9]} 11. O-O {[%clk 0:02:55.7]}
11... Bd7 {[%clk 0:02:15.8]} 12. c3 {[%clk 0:02:55.4]} 12... Qc8 {[%clk
0:02:13.6]} 13. d4 {[%clk 0:02:53]} 13... Bh3 {[%clk 0:02:04]} 14. Ne3 {[%clk
0:02:50.3]} 14... Bxg2 {[%clk 0:01:58.5]} 15. Kxg2 {[%clk 0:02:50]} 15... Nf6
{[%clk 0:01:58.5]} 16. dxc5 {[%clk 0:02:37.1]} 16... Nxe4 {[%clk 0:01:51.7]} 17.
Qd5 {[%clk 0:02:28.8]} 17... Nxc5 {[%clk 0:01:47.9]} 18. cxb4 {[%clk 0:02:26]}
18... Nxb4 {[%clk 0:01:46.3]} 19. Qf3 {[%clk 0:02:25.2]} 19... Qb7 {[%clk
0:01:40.6]} 20. Nf4 {[%clk 0:02:21.4]} 20... Qxf3+ {[%clk 0:01:37.6]} 21. Kxf3
{[%clk 0:02:22.3]} 21... Nbd3 {[%clk 0:01:36.3]} 22. Nfd5 {[%clk 0:02:19.8]}
22... f6 {[%clk 0:01:25.1]} 23. Nf4 {[%clk 0:01:52.9]} 23... fxg5 {[%clk
0:01:18.5]} 24. Nxg6 {[%clk 0:01:53.1]} 24... Rh6 {[%clk 0:01:17.2]} 0-1

[Event "Early-Titled-Tuesday-Blitz-January-16-2024"]
[Site "Chess.com"]
[Date "2024.01.16"]
[Round "5"]
[White "Cheer_Down"]
[Black "bubeliang"]
[Result "0-1"]
[WhiteElo "2519"]
[BlackElo "2768"]
[TimeControl "180+1"]
[EndTime "8:55:21 PST"]
[Termination "bubeliang won by checkmate"]

1. d4 {[%clk 0:03:00.9]} 1... b6 {[%clk 0:02:58.3]} 2. e4 {[%clk 0:03:00.1]}
2... Bb7 {[%clk 0:02:55.6]} 3. Bd3 {[%clk 0:03:00.2]} 3... e6 {[%clk 0:02:54.8]}
4. Nd2 {[%clk 0:02:58.9]} 4... g6 {[%clk 0:02:54.8]} 5. Ngf3 {[%clk 0:02:56.4]}
5... Bg7 {[%clk 0:02:52.8]} 6. O-O {[%clk 0:02:56.4]} 6... Ne7 {[%clk
0:02:50.5]} 7. Re1 {[%clk 0:02:56]} 7... d6 {[%clk 0:02:49.7]} 8. Nf1 {[%clk
0:02:53.5]} 8... O-O {[%clk 0:02:48.7]} 9. Ng3 {[%clk 0:02:51.2]} 9... c5 {[%clk
0:02:48.1]} 10. c3 {[%clk 0:02:51.2]} 10... Nbc6 {[%clk 0:02:46.4]} 11. a3
{[%clk 0:02:49.7]} 11... cxd4 {[%clk 0:02:45.3]} 12. cxd4 {[%clk 0:02:49.5]}
12... Nxd4 {[%clk 0:02:46.2]} 13. Nxd4 {[%clk 0:02:45.6]} 13... Bxd4 {[%clk
0:02:47.1]} 14. Bh6 {[%clk 0:02:44.7]} 14... Bg7 {[%clk 0:02:45.4]} 15. Qd2
{[%clk 0:02:43.3]} 15... Rc8 {[%clk 0:02:40.5]} 16. h4 {[%clk 0:02:41.9]} 16...
Nc6 {[%clk 0:02:38.4]} 17. h5 {[%clk 0:02:39.3]} 17... Ne5 {[%clk 0:02:38.3]}
18. Bf1 {[%clk 0:02:29.4]} 18... Rc2 {[%clk 0:02:20.5]} 19. Qxc2 {[%clk
0:02:23.1]} 19... Bxh6 {[%clk 0:02:19.5]} 20. hxg6 {[%clk 0:02:19]} 20... hxg6
{[%clk 0:02:18.7]} 21. Be2 {[%clk 0:01:51.3]} 21... Kg7 {[%clk 0:02:12.9]} 22.
Rad1 {[%clk 0:01:45.9]} 22... Qh4 {[%clk 0:01:58.2]} 23. Rxd6 {[%clk 0:01:32.3]}
23... Bf4 {[%clk 0:01:53.6]} 24. Qc3 {[%clk 0:01:22.9]} 24... Rh8 {[%clk
0:01:49.8]} 25. Bf3 {[%clk 0:01:21.9]} 25... Qh2+ {[%clk 0:01:48.1]} 26. Kf1
{[%clk 0:01:20.5]} 26... Ba6+ {[%clk 0:01:48.6]} 27. Be2 {[%clk 0:01:18.9]}
27... Qh1+ {[%clk 0:01:48.2]} 28. Nxh1 {[%clk 0:01:18.8]} 28... Rxh1# {[%clk
0:01:49.1]} 0-1

[Event "Early-Titled-Tuesday-Blitz-January-16-2024"]
[Site "Chess.com"]
[Date "2024.01.16"]
[Round "5"]
[White "marina1994"]
[Black "alvarorodriguezavila"]
[Result "1-0"]
[WhiteElo "2530"]
[BlackElo "2315"]
[TimeControl "180+1"]
[EndTime "8:55:26 PST"]
[Termination "marina1994 won by resignation"]

1. e4 {[%clk 0:03:00.9]} 1... c5 {[%clk 0:02:58.5]} 2. Nf3 {[%clk 0:02:53.9]}
2... g6 {[%clk 0:02:58.9]} 3. d4 {[%clk 0:02:51.5]} 3... cxd4 {[%clk 0:02:59.8]}
4. Nxd4 {[%clk 0:02:51]} 4... Bg7 {[%clk 0:03:00.1]} 5. c4 {[%clk 0:02:50.1]}
5... Nc6 {[%clk 0:03:00.1]} 6. Be3 {[%clk 0:02:49.6]} 6... Nf6 {[%clk
0:02:59.1]} 7. Nc3 {[%clk 0:02:48.9]} 7... Ng4 {[%clk 0:02:59.4]} 8. Qxg4 {[%clk
0:02:16.4]} 8... Nxd4 {[%clk 0:02:59.9]} 9. Qd1 {[%clk 0:02:16.2]} 9... Ne6
{[%clk 0:02:47.3]} 10. Qd2 {[%clk 0:02:10.7]} 10... Qa5 {[%clk 0:02:45.7]} 11.
Nd5 {[%clk 0:02:05.8]} 11... Qxd2+ {[%clk 0:02:44.3]} 12. Bxd2 {[%clk
0:02:05.3]} 12... Bxb2 {[%clk 0:02:38.7]} 13. Rb1 {[%clk 0:02:05]} 13... Bg7
{[%clk 0:02:39.3]} 14. g3 {[%clk 0:01:59.6]} 14... d6 {[%clk 0:02:25.9]} 15. Bh3
{[%clk 0:01:49.9]} 15... O-O {[%clk 0:01:58.4]} 16. O-O {[%clk 0:01:43.1]} 16...
Re8 {[%clk 0:01:42.5]} 17. Bxe6 {[%clk 0:01:41.3]} 17... fxe6 {[%clk 0:01:39.3]}
18. Nc7 {[%clk 0:01:41.3]} 18... Rf8 {[%clk 0:01:26.1]} 19. Nxa8 {[%clk
0:01:40.4]} 19... a6 {[%clk 0:01:02]} 20. Nb6 {[%clk 0:01:38.2]} 1-0

[Event "Early-Titled-Tuesday-Blitz-January-16-2024"]
[Site "Chess.com"]
[Date "2024.01.16"]
[Round "5"]
[White "Konavets"]
[Black "profedechess93"]
[Result "1-0"]
[WhiteElo "3153"]
[BlackElo "2640"]
[TimeControl "180+1"]
[EndTime "8:55:38 PST"]
[Termination "Konavets won by resignation"]

1. e4 {[%clk 0:03:00.9]} 1... e6 {[%clk 0:02:59.9]} 2. Qe2 {[%clk 0:02:59.1]}
2... c5 {[%clk 0:02:59.4]} 3. f4 {[%clk 0:02:59.1]} 3... Nc6 {[%clk 0:03:00]} 4.
Nf3 {[%clk 0:02:59.7]} 4... d6 {[%clk 0:03:00]} 5. g4 {[%clk 0:02:59.5]} 5... e5
{[%clk 0:02:48.1]} 6. f5 {[%clk 0:02:56.9]} 6... Nd4 {[%clk 0:02:48.3]} 7. Nxd4
{[%clk 0:02:57]} 7... exd4 {[%clk 0:02:49.2]} 8. h4 {[%clk 0:02:56.2]} 8... Bd7
{[%clk 0:02:41.5]} 9. d3 {[%clk 0:02:54.6]} 9... Qa5+ {[%clk 0:02:38.8]} 10. Nd2
{[%clk 0:02:54.3]} 10... O-O-O {[%clk 0:02:37.5]} 11. Bg2 {[%clk 0:02:54.5]}
11... g6 {[%clk 0:02:29.9]} 12. O-O {[%clk 0:02:51.8]} 12... gxf5 {[%clk
0:02:29.4]} 13. Nc4 {[%clk 0:02:48.8]} 13... Qc7 {[%clk 0:02:28.1]} 14. exf5
{[%clk 0:02:48]} 14... Bc6 {[%clk 0:02:20.7]} 15. Bf4 {[%clk 0:02:44.9]} 15...
Nf6 {[%clk 0:02:15.3]} 16. g5 {[%clk 0:02:42.9]} 16... Nd5 {[%clk 0:02:12.8]}
17. Bg3 {[%clk 0:02:36.6]} 17... Re8 {[%clk 0:01:48.3]} 18. Qh5 {[%clk
0:02:27.7]} 18... b5 {[%clk 0:01:32.9]} 19. Nd2 {[%clk 0:02:26.8]} 19... Ne3
{[%clk 0:01:28.7]} 20. Bxc6 {[%clk 0:02:26.8]} 20... Qxc6 {[%clk 0:01:29.3]} 21.
Rf2 {[%clk 0:02:27.4]} 21... Re7 {[%clk 0:01:09.4]} 22. Ne4 {[%clk 0:02:24.3]}
22... Rxe4 {[%clk 0:01:08.4]} 23. dxe4 {[%clk 0:02:24.7]} 23... Qxe4 {[%clk
0:01:09.2]} 24. Re1 {[%clk 0:02:22]} 24... Be7 {[%clk 0:01:05.7]} 25. Qxf7
{[%clk 0:02:07.8]} 25... Bd8 {[%clk 0:00:58.1]} 26. Qe6+ {[%clk 0:02:05.1]}
26... Qxe6 {[%clk 0:00:57.4]} 27. fxe6 {[%clk 0:02:06]} 1-0

[Event "Early-Titled-Tuesday-Blitz-January-16-2024"]
[Site "Chess.com"]
[Date "2024.01.16"]
[Round "5"]
[White "dzilleruelo"]
[Black "AsterPhoenix"]
[Result "0-1"]
[WhiteElo "2368"]
[BlackElo "2573"]
[TimeControl "180+1"]
[EndTime "8:55:43 PST"]
[Termination "AsterPhoenix won by resignation"]

1. e4 {[%clk 0:03:00.9]} 1... c5 {[%clk 0:02:53.8]} 2. Nf3 {[%clk 0:02:56.9]}
2... e6 {[%clk 0:02:53.6]} 3. g3 {[%clk 0:02:56.1]} 3... d5 {[%clk 0:02:52.6]}
4. exd5 {[%clk 0:02:56.3]} 4... exd5 {[%clk 0:02:53.5]} 5. d4 {[%clk 0:02:56.6]}
5... cxd4 {[%clk 0:02:53.6]} 6. Nxd4 {[%clk 0:02:56.4]} 6... Nc6 {[%clk
0:02:53.9]} 7. Bg2 {[%clk 0:02:56.5]} 7... Bc5 {[%clk 0:02:54.3]} 8. Nb3 {[%clk
0:02:56.3]} 8... Qe7+ {[%clk 0:02:53.3]} 9. Qe2 {[%clk 0:02:51.6]} 9... Bb6
{[%clk 0:02:51.9]} 10. Qxe7+ {[%clk 0:02:49.6]} 10... Ngxe7 {[%clk 0:02:51.6]}
11. O-O {[%clk 0:02:50.2]} 11... Be6 {[%clk 0:02:46.6]} 12. N1d2 {[%clk
0:02:44.8]} 12... Nb4 {[%clk 0:02:42]} 13. c3 {[%clk 0:02:41]} 13... Nd3 {[%clk
0:02:42.1]} 14. Nf3 {[%clk 0:02:37]} 14... Nc6 {[%clk 0:02:36.4]} 15. Nfd4
{[%clk 0:02:28.5]} 15... Nxd4 {[%clk 0:02:33]} 16. Nxd4 {[%clk 0:02:28.8]} 16...
Bxd4 {[%clk 0:02:31.3]} 17. cxd4 {[%clk 0:02:29.7]} 17... Rc8 {[%clk 0:02:28.4]}
18. Rd1 {[%clk 0:02:29.8]} 18... Nxc1 {[%clk 0:02:16.7]} 19. Raxc1 {[%clk
0:02:29.4]} 19... Kd7 {[%clk 0:02:17.4]} 20. Kf1 {[%clk 0:02:23.1]} 20... Kd6
{[%clk 0:02:13.2]} 21. Ke1 {[%clk 0:02:22.9]} 21... b6 {[%clk 0:02:10.4]} 22.
Kd2 {[%clk 0:02:22.9]} 22... Rc4 {[%clk 0:02:08.4]} 23. b3 {[%clk 0:02:18.7]}
23... Rxd4+ {[%clk 0:02:07.3]} 24. Ke3 {[%clk 0:02:18.3]} 24... Rxd1 {[%clk
0:02:06.5]} 25. Rxd1 {[%clk 0:02:17.6]} 25... Rc8 {[%clk 0:02:06.2]} 26. Rd2
{[%clk 0:02:10.9]} 26... Rc1 {[%clk 0:01:58.1]} 27. f4 {[%clk 0:02:09.2]} 27...
g6 {[%clk 0:01:48]} 28. g4 {[%clk 0:01:50.3]} 28... Bxg4 {[%clk 0:01:29.6]} 29.
Bxd5 {[%clk 0:01:50.3]} 29... Ke7 {[%clk 0:01:27.7]} 30. Kf2 {[%clk 0:01:44]}
30... Bf5 {[%clk 0:01:20.8]} 31. Re2+ {[%clk 0:01:37.8]} 31... Kf6 {[%clk
0:01:20.4]} 32. Re7 {[%clk 0:01:33.9]} 32... Kxe7 {[%clk 0:01:19.9]} 0-1

[Event "Early-Titled-Tuesday-Blitz-January-16-2024"]
[Site "Chess.com"]
[Date "2024.01.16"]
[Round "5"]
[White "sergeikim"]
[Black "RCone"]
[Result "1-0"]
[WhiteElo "2618"]
[BlackElo "2439"]
[TimeControl "180+1"]
[EndTime "8:55:45 PST"]
[Termination "sergeikim won on time"]

1. d4 {[%clk 0:03:00.9]} 1... g6 {[%clk 0:02:58.8]} 2. c4 {[%clk 0:03:00.9]}
2... Bg7 {[%clk 0:02:58.7]} 3. Nc3 {[%clk 0:03:00.4]} 3... Nf6 {[%clk
0:02:59.2]} 4. e4 {[%clk 0:02:59.7]} 4... O-O {[%clk 0:02:59.6]} 5. Nge2 {[%clk
0:02:59.3]} 5... d6 {[%clk 0:02:59.2]} 6. Ng3 {[%clk 0:02:59.2]} 6... e5 {[%clk
0:02:59.2]} 7. d5 {[%clk 0:02:59.5]} 7... c6 {[%clk 0:02:59.1]} 8. Be2 {[%clk
0:02:59.6]} 8... a5 {[%clk 0:02:57.2]} 9. O-O {[%clk 0:02:57.8]} 9... Na6 {[%clk
0:02:56.6]} 10. Be3 {[%clk 0:02:57.5]} 10... cxd5 {[%clk 0:02:53.6]} 11. cxd5
{[%clk 0:02:56.9]} 11... Bd7 {[%clk 0:02:49.4]} 12. h3 {[%clk 0:02:53.5]} 12...
Nc5 {[%clk 0:02:28.9]} 13. Qd2 {[%clk 0:02:53.2]} 13... Rc8 {[%clk 0:02:01.7]}
14. Bh6 {[%clk 0:02:51.7]} 14... Bxh6 {[%clk 0:01:53]} 15. Qxh6 {[%clk
0:02:50.4]} 15... b5 {[%clk 0:01:51.4]} 16. f3 {[%clk 0:02:43.8]} 16... Qb6
{[%clk 0:01:45.9]} 17. Kh2 {[%clk 0:02:43.7]} 17... b4 {[%clk 0:01:45.8]} 18.
Nd1 {[%clk 0:02:43.1]} 18... Ne8 {[%clk 0:00:41.6]} 19. Ne3 {[%clk 0:02:39.3]}
19... Ng7 {[%clk 0:00:40.8]} 20. f4 {[%clk 0:02:26.8]} 20... exf4 {[%clk
0:00:37.3]} 21. Rxf4 {[%clk 0:02:25.7]} 1-0